fUSD/lending_fUSD_20260118
["ID","MTS","AMOUNT","RATE_DAILY","PERIOD"]
[402522409,1768695049674,-500.0,0.00016712,2]
[402522411,1768695049685,-713.05,0.00016712,2]
[402522413,1768695049694,-500.0,0.00016712,2]
[402522415,1768695049704,-531.55,0.00016712,2]
[402522417,1768695049714,-500.0,0.00016712,2]
[402522419,1768695049723,-500.0,0.00016712,2]
[402522421,1768695049733,-346.49377611,0.00016712,2]
[402522423,1768695049743,-500.0,0.00016712,2]
[402522425,1768695049753,-500.0,0.00016712,2]
[402522426,1768695049763,-500.0,0.00016712,2]
[402522428,1768695049772,-786.59,0.00016712,2]
[402522430,1768695049782,-500.0,0.00016712,2]
[402522432,1768695049791,-593.66,0.00016712,2]
[402522433,1768695049800,-500.0,0.00016712,2]
[402522436,1768695049810,-500.0,0.00016712,2]
[402522437,1768695049820,-500.0,0.00016712,2]
[402522440,1768695049829,-500.0,0.00016712,2]
[402522442,1768695049840,-500.0,0.00016712,2]
[402522444,1768695049849,-500.0,0.00016712,2]
[402522446,1768695049859,-687.21,0.00016712,2]
[402522448,1768695049869,-500.0,0.00016712,2]
[402522450,1768695049879,-500.0,0.00016712,2]
[402522452,1768695049889,-758.58,0.00016712,2]
[402522454,1768695049899,-500.0,0.00016712,2]
[402522456,1768695049908,-500.0,0.00016712,2]
[402522458,1768695049918,-500.0,0.00016712,2]
[402522460,1768695049928,-615.07,0.00016712,2]
[402522461,1768695049938,-506.57,0.00016712,2]
[402522462,1768695049948,-500.0,0.00016712,2]
[402522463,1768695049958,-500.0,0.00016712,2]
[402522464,1768695049967,-500.0,0.00016712,2]
[402522465,1768695049977,-500.0,0.00016712,2]
[402522466,1768695049990,-500.2,0.00016712,2]
[402522467,1768695049999,-500.0,0.00016712,2]
[402522468,1768695050010,-500.0,0.00016712,2]
[402522469,1768695050019,-696.87,0.00016712,2]
[402522470,1768695050030,-500.0,0.00016712,2]
[402522471,1768695050041,-500.0,0.00016712,2]
[402522472,1768695050051,-500.0,0.00016712,2]
[402522473,1768695050063,-500.0,0.00016712,2]
[402522474,1768695050072,-500.0,0.00016712,2]
[402522475,1768695050082,-553.13,0.00016712,2]
[402522476,1768695050092,-500.0,0.00016712,2]
[402522477,1768695050102,-500.0,0.00016712,2]
[402522478,1768695050111,-500.0,0.00016712,2]
[402522479,1768695050120,-519.79,0.00016712,2]
[402522480,1768695050130,-500.0,0.00016712,2]
[402522481,1768695050140,-500.0,0.00016712,2]
[402522482,1768695050150,-500.0,0.00016712,2]
[402522483,1768695050159,-500.0,0.00016712,2]
[402522484,1768695050169,-500.0,0.00016712,2]
[402522485,1768695050179,-500.0,0.00016712,2]
[402522486,1768695050188,-500.0,0.00016712,2]
[402522487,1768695050198,-500.0,0.00016712,2]
[402522488,1768695050208,-500.0,0.00016712,2]
[402522489,1768695050217,-500.0,0.00016712,2]
[402522490,1768695050227,-500.0,0.00016712,2]
[402522491,1768695050236,-500.0,0.00016712,2]
[402522492,1768695050246,-500.0,0.00016712,2]
[402522493,1768695050255,-500.0,0.00016712,2]
[402522494,1768695050264,-526.55,0.00016712,2]
[402522495,1768695050274,-500.0,0.00016712,2]
[402522496,1768695050283,-500.0,0.00016712,2]
[402522497,1768695050293,-500.0,0.00016712,2]
[402522498,1768695050303,-300.0,0.00016712,2]
[402522499,1768695050312,-500.0,0.00016712,2]
[402522500,1768695050322,-500.0,0.00016712,2]
[402522501,1768695050333,-500.0,0.00016712,2]
[402522502,1768695050344,-500.0,0.00016712,2]
[402522503,1768695050353,-500.0,0.00016712,2]
[402522504,1768695050363,-500.0,0.00016712,2]
[402522505,1768695050373,-634.66,0.00016712,2]
[402522506,1768695050382,-500.0,0.00016712,2]
[402522514,1768695050490,-500.0,0.00016712,2]
[402522516,1768695050500,-500.0,0.00016712,2]
[402522518,1768695050509,-756.9,0.00016712,2]
[402522520,1768695050518,-649.09,0.00016712,2]
[402522521,1768695050528,-500.0,0.00016712,2]
[402522523,1768695050540,-500.0,0.00016712,2]
[402522526,1768695050550,-500.0,0.00016712,2]
[402522527,1768695050559,-1110.5,0.00016712,2]
[402522529,1768695050569,-500.0,0.00016712,2]
[402522532,1768695050578,-500.0,0.00016712,2]
[402522533,1768695050587,-500.0,0.00016712,2]
[402522535,1768695050596,-683.96,0.00016712,2]
[402522537,1768695050606,-500.0,0.00016712,2]
[402522539,1768695050615,-500.0,0.00016712,2]
[402522541,1768695050625,-500.0,0.00016712,2]
[402522543,1768695050635,-500.0,0.00016712,2]
[402522546,1768695050645,-500.0,0.00016712,2]
[402522548,1768695050654,-500.0,0.00016712,2]
[402522549,1768695050663,-500.0,0.00016712,2]
[402522552,1768695050673,-671.55,0.00016712,2]
[402522554,1768695050684,-500.0,0.00016712,2]
[402522556,1768695050694,-507.19424596,0.00016712,2]
[402522558,1768695050703,-500.0,0.00016712,2]
[402522560,1768695050712,-500.0,0.00016712,2]
[402522562,1768695050721,-276.16565895,0.00016712,2]
[402522564,1768695050731,-500.0,0.00016712,2]
[402522566,1768695050739,-500.0,0.00016712,2]
[402522568,1768695050749,-500.0,0.00016712,2]
[402522569,1768695050758,-583.27999259,0.00016712,2]
[402522571,1768695050767,-500.0,0.00016712,2]
[402522573,1768695050778,-500.0,0.00016712,2]
[402522575,1768695050787,-500.0,0.00016712,2]
[402522577,1768695050797,-500.0,0.00016712,2]
[402522579,1768695050806,-500.0,0.00016712,2]
[402522581,1768695050816,-500.0,0.00016712,2]
[402522583,1768695050825,-500.0,0.00016712,2]
[402522585,1768695050834,-500.0,0.00016712,2]
[402522587,1768695050844,-500.0,0.00016712,2]
[402522589,1768695050853,-500.0,0.00016712,2]
[402522591,1768695050863,-592.77,0.00016712,2]
[402522593,1768695050872,-560.57,0.00016712,2]
[402522595,1768695050882,-613.48706225,0.00016712,2]
[402522597,1768695050891,-500.0,0.00016712,2]
[402522599,1768695050901,-505.84909477,0.00016712,2]
[402522601,1768695050910,-500.0,0.00016712,2]
[402522603,1768695050920,-300.0,0.00016712,2]
[402522605,1768695050929,-500.0,0.00016712,2]
[402522607,1768695050938,-500.0,0.00016712,2]
[402522608,1768695050947,-500.0,0.00016712,2]
[402522610,1768695050960,-500.0,0.00016712,2]
[402522613,1768695050972,-500.0,0.00016712,2]
[402522614,1768695050981,-500.0,0.00016712,2]
[402522616,1768695050993,-500.0,0.00016712,2]
[402522618,1768695051003,-500.0,0.00016712,2]
[402522620,1768695051012,-500.0,0.00016712,2]
[402522622,1768695051021,-500.0,0.00016712,2]
[402522624,1768695051032,-500.0,0.00016712,2]
[402522626,1768695051042,-500.0,0.00016712,2]
[402522628,1768695051052,-745.29,0.00016712,2]
[402522630,1768695051063,-500.0,0.00016712,2]
[402522632,1768695051072,-258.47364873,0.00016712,2]
[402522634,1768695051081,-500.0,0.00016712,2]
[402522636,1768695051090,-500.0,0.00016712,2]
[402522638,1768695051100,-500.0,0.00016712,2]
[402522640,1768695051109,-500.0,0.00016712,2]
[402522642,1768695051118,-500.0,0.00016712,2]
[402522644,1768695051128,-732.56,0.00016712,2]
[402522646,1768695051137,-500.0,0.00016712,2]
[402522648,1768695051147,-500.0,0.00016712,2]
[402522650,1768695051156,-500.0,0.00016712,2]
[402522652,1768695051165,-500.0,0.00016712,2]
[402522654,1768695051174,-500.0,0.00016712,2]
[402522656,1768695051184,-500.0,0.00016712,2]
[402522658,1768695051194,-500.0,0.00016712,2]
[402522660,1768695051203,-446.83489469,0.00016712,2]
[402522662,1768695051212,-500.0,0.00016712,2]
[402522664,1768695051221,-500.0,0.00016712,2]
[402522666,1768695051231,-500.0,0.00016712,2]
[402522668,1768695051240,-500.0,0.00016712,2]
[402522670,1768695051249,-528.9,0.00016712,2]
[402522672,1768695051260,-500.0,0.00016712,2]
[402522674,1768695051269,-500.0,0.00016712,2]
[402522676,1768695051279,-500.0,0.00016712,2]
[402522678,1768695051288,-500.0,0.00016712,2]
[402522680,1768695051297,-500.0,0.00016712,2]
[402522682,1768695051307,-500.0,0.00016712,2]
[402522684,1768695051316,-500.0,0.00016712,2]
[402522686,1768695051325,-500.0,0.00016712,2]
[402522688,1768695051335,-507.22,0.00016712,2]
[402522690,1768695051344,-500.0,0.00016712,2]
[402522692,1768695051354,-890.89,0.00016712,2]
[402522694,1768695051363,-500.0,0.00016712,2]
[402522696,1768695051372,-500.0,0.00016712,2]
[402522698,1768695051382,-746.1,0.00016712,2]
[402522700,1768695051393,-509.95,0.00016712,2]
[402522702,1768695051402,-500.0,0.00016712,2]
[402522704,1768695051411,-500.0,0.00016712,2]
[402522706,1768695051420,-500.0,0.00016712,2]
[402522708,1768695051430,-500.0,0.00016712,2]
[402522710,1768695051439,-500.0,0.00016712,2]
[402522712,1768695051450,-500.0,0.00016712,2]
[402522714,1768695051459,-500.0,0.00016712,2]
[402522716,1768695051468,-822.02,0.00016712,2]
[402522718,1768695051478,-500.0,0.00016712,2]
[402522720,1768695051488,-500.0,0.00016712,2]
[402522722,1768695051497,-500.0,0.00016712,2]
[402522724,1768695051506,-500.0,0.00016712,2]
[402522726,1768695051515,-500.0,0.00016712,2]
[402522728,1768695051524,-500.0,0.00016712,2]
[402522730,1768695051534,-500.0,0.00016712,2]
[402522732,1768695051543,-500.0,0.00016712,2]
[402522734,1768695051552,-581.59,0.00016712,2]
[402522736,1768695051561,-500.0,0.00016712,2]
[402522737,1768695051571,-748.05,0.00016712,2]
[402522739,1768695051580,-504.61,0.00016712,2]
[402522741,1768695051590,-500.0,0.00016712,2]
[402522743,1768695051599,-500.0,0.00016712,2]
[402522745,1768695051608,-500.0,0.00016712,2]
[402522747,1768695051618,-500.0,0.00016712,2]
[402522749,1768695051627,-500.0,0.00016712,2]
[402522751,1768695051637,-500.0,0.00016712,2]
[402522753,1768695051647,-523.04,0.00016712,2]
[402522755,1768695051656,-707.09,0.00016712,2]
[402522757,1768695051666,-500.0,0.00016712,2]
[402522759,1768695051675,-500.0,0.00016712,2]
[402522761,1768695051685,-500.0,0.00016712,2]
[402522763,1768695051695,-500.0,0.00016712,2]
[402522765,1768695051704,-749.38,0.00016712,2]
[402522767,1768695051713,-521.68,0.00016712,2]
[402522769,1768695051722,-279.64638169,0.00016712,2]
[402522770,1768695051731,-598.64,0.00016712,2]
[402522772,1768695051740,-500.0,0.00016712,2]
[402522774,1768695051749,-500.0,0.00016712,2]
[402522776,1768695051758,-500.0,0.00016712,2]
[402522778,1768695051768,-500.0,0.00016712,2]
[402522780,1768695051777,-500.0,0.00016712,2]
[402522782,1768695051787,-516.44,0.00016712,2]
[402522784,1768695051796,-500.0,0.00016712,2]
[402522786,1768695051806,-500.0,0.00016712,2]
[402522788,1768695051816,-600.61,0.00016712,2]
[402522790,1768695051826,-500.0,0.00016712,2]
[402522792,1768695051835,-604.45,0.00016712,2]
[402522794,1768695051844,-500.0,0.00016712,2]
[402522796,1768695051853,-500.0,0.00016712,2]
[402522798,1768695051863,-500.0,0.00016712,2]
[402522800,1768695051873,-500.0,0.00016712,2]
[402522802,1768695051882,-500.0,0.00016712,2]
[402522804,1768695051892,-921.56,0.00016712,2]
[402522806,1768695051901,-500.0,0.00016712,2]
[402522808,1768695051910,-506.38,0.00016712,2]
[402522810,1768695051919,-500.0,0.00016712,2]
[402522812,1768695051929,-927.89,0.00016712,2]
[402522814,1768695051938,-680.35,0.00016712,2]
[402522815,1768695051947,-500.0,0.00016712,2]
[402522817,1768695051956,-509.38,0.00016712,2]
[402522819,1768695051966,-500.0,0.00016712,2]
[402522821,1768695051975,-500.0,0.00016712,2]
[402522823,1768695051990,-235.59948878,0.00016712,2]
[402522825,1768695051999,-500.0,0.00016712,2]
[402522827,1768695052008,-500.0,0.00016712,2]
[402522829,1768695052018,-500.0,0.00016712,2]
[402522831,1768695052030,-836.81,0.00016712,2]
[402522833,1768695052040,-500.0,0.00016712,2]
[402522835,1768695052051,-834.54,0.00016712,2]
[402522837,1768695052061,-502.00840068,0.00016712,2]
[402522839,1768695052070,-500.0,0.00016712,2]
[402522840,1768695052080,-500.0,0.00016712,2]
[402522842,1768695052090,-500.0,0.00016712,2]
[402522844,1768695052100,-559.56587263,0.00016712,2]
[402522846,1768695052109,-576.72,0.00016712,2]
[402522847,1768695052118,-500.0,0.00016712,2]
[402522848,1768695052126,-1130.39,0.00016712,2]
[402522849,1768695052135,-500.0,0.00016712,2]
[402522850,1768695052144,-500.0,0.00016712,2]
[402522851,1768695052154,-500.0,0.00016712,2]
[402522852,1768695052164,-500.0,0.00016712,2]
[402522853,1768695052174,-500.0,0.00016712,2]
[402522854,1768695052184,-500.0,0.00016712,2]
[402522855,1768695052194,-597.4,0.00016712,2]
[402522856,1768695052203,-384.47791728,0.00016712,2]
[402522857,1768695052212,-500.0,0.00016712,2]
[402522858,1768695052222,-500.0,0.00016712,2]
[402522859,1768695052231,-500.0,0.00016712,2]
[402522860,1768695052240,-500.0,0.00016712,2]
[402522861,1768695052250,-410.80891973,0.00016712,2]
[402522862,1768695052259,-1015.18,0.00016712,2]
[402522863,1768695052268,-500.0,0.00016712,2]
[402522864,1768695052278,-500.0,0.00016712,2]
[402522865,1768695052287,-500.0,0.00016712,2]
[402522866,1768695052297,-729.4,0.00016712,2]
[402522867,1768695052306,-559.53,0.00016712,2]
[402522868,1768695052315,-566.28,0.00016712,2]
[402522869,1768695052325,-500.0,0.00016712,2]
[402522870,1768695052335,-286.67193722,0.00016712,2]
[402522871,1768695052345,-500.0,0.00016712,2]
[402522872,1768695052354,-500.0,0.00016712,2]
[402522873,1768695052364,-500.0,0.00016712,2]
[402522874,1768695052373,-500.0,0.00016712,2]
[402522875,1768695052382,-500.0,0.00016712,2]
[402522876,1768695052391,-500.0,0.00016712,2]
[402522877,1768695052401,-500.0,0.00016712,2]
[402522878,1768695052410,-562.61,0.00016712,2]
[402522879,1768695052420,-500.0,0.00016712,2]
[402522880,1768695052429,-528.11,0.00016712,2]
[402522881,1768695052440,-500.0,0.00016712,2]
[402522882,1768695052449,-500.0,0.00016712,2]
[402522883,1768695052460,-595.19,0.00016712,2]
[402522884,1768695052469,-500.0,0.00016712,2]
[402522885,1768695052478,-500.0,0.00016712,2]
[402522887,1768695052488,-500.0,0.00016712,2]
[402522889,1768695052497,-500.0,0.00016712,2]
[402522891,1768695052506,-545.86,0.00016712,2]
[402522893,1768695052515,-500.0,0.00016712,2]
[402522895,1768695052524,-760.4,0.00016712,2]
[402522897,1768695052533,-700.74,0.00016712,2]
[402522899,1768695052543,-500.0,0.00016712,2]
[402522900,1768695052552,-500.0,0.00016712,2]
[402522902,1768695052563,-500.0,0.00016712,2]
[402522903,1768695052572,-500.0,0.00016712,2]
[402522904,1768695052581,-500.0,0.00016712,2]
[402522905,1768695052591,-500.0,0.00016712,2]
[402522906,1768695052600,-500.0,0.00016712,2]
[402522907,1768695052609,-500.0,0.00016712,2]
[402522908,1768695052618,-676.33,0.00016712,2]
[402522909,1768695052627,-180.87,0.00016712,2]
[402522910,1768695052637,-500.0,0.00016712,2]
[402522911,1768695052647,-500.0,0.00016712,2]
[402522912,1768695052656,-500.0,0.00016712,2]
[402522913,1768695052666,-441.04266521,0.00016712,2]
[402522914,1768695052675,-905.24,0.00016712,2]
[402522915,1768695052685,-500.0,0.00016712,2]
[402522916,1768695052694,-500.82,0.00016712,2]
[402522917,1768695052704,-764.81,0.00016712,2]
[402522918,1768695052713,-500.0,0.00016712,2]
[402522919,1768695052723,-500.0,0.00016712,2]
[402522920,1768695052732,-511.49,0.00016712,2]
[402522921,1768695052741,-500.0,0.00016712,2]
[402522922,1768695052751,-500.0,0.00016712,2]
[402522923,1768695052761,-500.0,0.00016712,2]
[402522924,1768695052770,-645.98159977,0.00016712,2]
[402522925,1768695052779,-500.0,0.00016712,2]
[402522926,1768695052789,-888.02,0.00016712,2]
[402522927,1768695052799,-500.0,0.00016712,2]
[402522928,1768695052809,-586.05,0.00016712,2]
[402522929,1768695052818,-500.0,0.00016712,2]
[402522930,1768695052828,-500.0,0.00016712,2]
[402522931,1768695052837,-510.86,0.00016712,2]
[402522932,1768695052847,-500.0,0.00016712,2]
[402522933,1768695052857,-500.0,0.00016712,2]
[402522934,1768695052867,-500.0,0.00016712,2]
[402522935,1768695052877,-664.9,0.00016712,2]
[402522936,1768695052886,-500.0,0.00016712,2]
[402522937,1768695052896,-500.0,0.00016712,2]
[402522938,1768695052906,-801.9,0.00016712,2]
[402522939,1768695052915,-521.47,0.00016712,2]
[402522940,1768695052925,-500.0,0.00016712,2]
[402522941,1768695052934,-500.0,0.00016712,2]
[402522942,1768695052944,-520.01,0.00016712,2]
[402522943,1768695052953,-500.0,0.00016712,2]
[402522944,1768695052962,-500.0,0.00016712,2]
[402522945,1768695052972,-500.15320716,0.00016712,2]
[402522946,1768695052984,-500.0,0.00016712,2]
[402522947,1768695052993,-500.0,0.00016712,2]
[402522949,1768695053002,-425.31236718,0.00016712,2]
[402522951,1768695053012,-500.0,0.00016712,2]
[402522953,1768695053023,-500.0,0.00016712,2]
[402522955,1768695053032,-500.0,0.00016712,2]
[402522957,1768695053041,-500.0,0.00016712,2]
[402522958,1768695053052,-797.05,0.00016712,2]
[402522960,1768695053063,-550.62,0.00016712,2]
[402522962,1768695053072,-10266.88,0.00016712,2]
[402522964,1768695053082,-500.0,0.00016712,2]
[402522966,1768695053092,-500.0,0.00016712,2]
[402522968,1768695053101,-771.8,0.00016712,2]
[402522969,1768695053110,-769.62,0.00016712,2]
[402522970,1768695053120,-615.96,0.00016712,2]
[402522971,1768695053128,-500.0,0.00016712,2]
[402522972,1768695053138,-500.0,0.00016712,2]
[402522973,1768695053147,-500.0,0.00016712,2]
[402522974,1768695053156,-1453.8647123,0.00016712,2]
[402523137,1768695055560,-340.0,0.00015812,2]
[402523139,1768695055570,-14.0347142,0.00016438,2]
[402523141,1768695055581,-485.9652858,0.00016438,2]
[402523143,1768695055590,-500.0,0.00016438,2]
[402523145,1768695055599,-14.0347142,0.00016712,2]
[402523156,1768695056090,-500.0,0.00016438,2]
[402523157,1768695056517,-580.66,0.00016438,2]
[402523158,1768695056529,-200.3105735,0.00016712,2]
[402523159,1768695056538,-500.0,0.00016712,2]
[402523160,1768695056548,-500.0,0.00016712,2]
[402523161,1768695056558,-929.51628024,0.00016712,2]
[402523162,1768695056569,-70.48371976,0.00016712,2]
[402523163,1768695056579,-235.71173697,0.00016712,2]
[402523164,1768695056624,-328.02826303,0.00016712,2]
[402523165,1768695056634,-500.0,0.00016712,2]
[402523166,1768695056644,-308.32648807,0.00016712,2]
[402523167,1768695056653,-587.89,0.00016712,2]
[402523168,1768695056664,-559.6,0.00016712,2]
[402523169,1768695056673,-500.0,0.00016712,2]
[402523170,1768695056683,-500.0,0.00016712,2]
[402523171,1768695056692,-510.03842145,0.00016712,2]
[402523172,1768695056702,-655.23,0.00016712,2]
[402523173,1768695056711,-329.61396523,0.00016712,2]
[402523174,1768695056721,-500.0,0.00016712,2]
[402523175,1768695056731,-9.81638202,0.00016712,2]
[402523176,1768695056747,-490.18361798,0.00016712,2]
[402523177,1768695056757,-153.52385481,0.00016712,2]
[402523179,1768695056778,-346.47614519,0.00016712,2]
[402523180,1768695056788,-500.0,0.00016712,2]
[402523181,1768695056797,-500.0,0.00016712,2]
[402523182,1768695056807,-500.0,0.00016712,2]
[402523183,1768695056822,-500.0,0.00016712,2]
[402523184,1768695056836,-500.0,0.00016712,2]
[402523185,1768695056845,-500.0,0.00016712,2]
[402523186,1768695056855,-500.0,0.00016712,2]
[402523187,1768695056865,-500.0,0.00016712,2]
[402523188,1768695056875,-124.12974553,0.00016712,2]
[402523189,1768695057734,-500.0,0.00016438,2]
[402523190,1768695057744,-5.91887267,0.00016712,2]
[402523191,1768695057925,-216.75624704,0.00016712,2]
[402523192,1768695058581,-500.0,0.00016438,2]
[402523193,1768695058591,-162.91513476,0.00016712,2]
[402523194,1768695058601,-551.15,0.00016712,2]
[402523195,1768695058611,-500.0,0.00016712,2]
[402523196,1768695058622,-500.0,0.00016712,2]
[402523197,1768695058634,-265.85554133,0.00016712,2]
[402523198,1768695058778,-181.18772022,0.00016712,2]
[402523199,1768695058798,-500.0,0.00016712,2]
[402523200,1768695058808,-336.00155255,0.00016712,2]
[402523201,1768695123595,2000.0,0.00027397,120]
[402523249,1768695907497,155.69579026,0.00018,30]
[402523254,1768695991835,150.0,0.00019333,120]
[402523260,1768696071477,541.0,0.00018,30]
[402523270,1768696230503,150.0,0.00026878,120]
[402523279,1768696231434,-183.47,0.00015169,2]
[402523281,1768696231444,-1000.0,0.0001523,2]
[402523282,1768696231455,-200.0,0.00015248,2]
[402523283,1768696231465,-158.37,0.00015252,2]
[402523284,1768696231475,-246.83,0.00015266,2]
[402523285,1768696231484,-287.10743633,0.00015397,2]
[402523286,1768696231495,-912.89256367,0.00015397,2]
[402523287,1768696231505,-519.6060166,0.00015398,2]
[402523288,1768696231531,-6089.19315107,0.00015398,2]
[402523289,1768696231540,-300.0,0.00015489,2]
[402523290,1768696231550,-226.7254103,0.0001549,2]
[402523291,1768696231563,-473.13988874,0.0001549,2]
[402523292,1768696231573,-500.0,0.0001549,2]
[402523293,1768696231582,-500.0,0.0001549,2]
[402523294,1768696231592,-500.0,0.0001549,2]
[402523296,1768696231957,-500.0,0.0001549,2]
[402523299,1768696231983,-262.4665153,0.0001549,2]
[402523300,1768696231994,-480.0,0.0001549,2]
[402523301,1768696232004,-300.0,0.0001549,2]
[402523302,1768696232014,-33619.62312646,0.00015491,2]
[402523303,1768696232073,-590.38944181,0.00015491,2]
[402523304,1768696232091,-2034.01693189,0.00015491,2]
[402523305,1768696232143,-703.96192003,0.00015491,2]
[402523423,1768696237634,-6484.5147958,0.00015491,2]
[402523424,1768696237646,-19365.06113403,0.00015491,2]
[402523425,1768696237658,-1081.14233948,0.00015491,2]
[402523426,1768696237677,-49608.39683299,0.00015491,2]
[402523427,1768696237711,-1078.90260844,0.00015491,2]
[402523428,1768696237723,-2978.91,0.00015491,2]
[402523429,1768696237734,-7887.11604352,0.00015491,2]
[402523430,1768696237759,-10525.24541044,0.00015491,2]
[402523431,1768696237770,-2877.50592822,0.00015491,2]
[402523432,1768696237782,-4141.776292,0.00015491,2]
[402523433,1768696237795,-4815.271,0.00015491,2]
[402523434,1768696237808,-7294.76997,0.00015491,2]
[402523435,1768696237820,-5699.00000005,0.00015491,2]
[402523436,1768696237832,-31340.76000001,0.00015491,2]
[402523437,1768696237844,-2149.884,0.00015491,2]
[402523438,1768696237857,-4318.269725,0.00015491,2]
[402523439,1768696237869,-3988.58000006,0.00015491,2]
[402523440,1768696237881,-691.00375427,0.00015491,2]
[402523513,1768696238855,-117153.8442455,0.00015491,2]
[402523515,1768696238865,-150.0,0.00015549,2]
[402523517,1768696238875,-200.0,0.00015581,2]
[402523519,1768696238884,-500.0,0.00015581,2]
[402523521,1768696238894,-500.0,0.0001559,2]
[402523523,1768696238904,-500.0,0.0001559,2]
[402523524,1768696238913,-500.0,0.0001559,2]
[402523526,1768696238923,-500.00000001,0.0001559,2]
[402523528,1768696238934,-500.0,0.0001559,2]
[402523530,1768696238944,-500.0,0.0001559,2]
[402523532,1768696238955,-2097.69,0.00015599,2]
[402523534,1768696238966,-2502.49501972,0.00015676,2]
[402523576,1768696239595,-4106.30414786,0.00015676,2]
[402523577,1768696239605,-1100.0,0.000158,5]
[402523578,1768696239614,-2300.0,0.000159,5]
[402523579,1768696239624,-1000.0,0.00015918,2]
[402523580,1768696239634,-6608.79916758,0.00015954,2]
[402523581,1768696239644,-322.6107,0.00016042,2]
[402523582,1768696239653,-174.61919141,0.00016042,2]
[402523583,1768696239664,-620.0,0.00016042,2]
[402523584,1768696239673,-578.20924308,0.00016042,2]
[402523585,1768696239683,-574.12855637,0.00016042,2]
[402523586,1768696239692,-4001.0,0.00016042,2]
[402523587,1768696239702,-3973.0,0.00016042,2]
[402523588,1768696239711,-721.12765535,0.00016042,2]
[402523589,1768696239721,-662.74,0.00016082,2]
[402523590,1768696239731,-660.89,0.00016082,2]
[402523591,1768696239740,-662.37,0.000161,2]
[402523592,1768696239750,-248.72844434,0.00016129,2]
[402523593,1768696239759,-500.0,0.00016164,2]
[402523594,1768696239768,-200.0,0.0001617,2]
[402523595,1768696239777,-150.0,0.000162,2]
[402523596,1768696239787,-150.0,0.000162,2]
[402523597,1768696239796,-150.0,0.000162,2]
[402523598,1768696239806,-159.74947018,0.000162,2]
[402523599,1768696239815,-150.0,0.000162,2]
[402523600,1768696239825,-150.0,0.000162,2]
[402523601,1768696239834,-150.0,0.000162,2]
[402523602,1768696239843,-150.0,0.000162,2]
[402523603,1768696239852,-150.0,0.000162,2]
[402523604,1768696239862,-150.0,0.000162,2]
[402523605,1768696239872,-150.0,0.000162,2]
[402523606,1768696239881,-150.0,0.000162,2]
[402523607,1768696239890,-540.66681905,0.000162,2]
[402523608,1768696239899,-2128.7929665,0.00016217,2]
[402523609,1768696239909,-159.74947018,0.00016218,2]
[402523610,1768696239918,-6608.79916758,0.00016232,2]
[402523611,1768696239927,-159.74947018,0.00016236,2]
[402523612,1768696239937,-159.74947018,0.00016255,2]
[402523613,1768696239947,-150.0,0.00016258,2]
[402523614,1768696239956,-150.0,0.00016272,2]
[402523615,1768696239966,-159.74947018,0.00016273,2]